bitfinex-derivatives/quotes_SOLF0:USTF0_20260207
["timestamp","ask_amount","ask_price","bid_price","bid_amount"]
[1770445347398,34.2781985,87.842,87.788,34.11385283]
[1770445348291,34.2781985,87.84,87.776,34.11385283]
[1770445348497,34.2781985,87.839,87.776,34.11385283]
[1770445348693,34.2781985,87.839,87.763,34.11385283]
[1770445349493,34.2781985,87.839,87.765,34.11385283]
[1770445350401,34.2781985,87.839,87.776,10.2603]
[1770445350601,34.2781985,87.839,87.777,34.11385283]
[1770445350900,34.2781985,87.839,87.782,34.11385283]
[1770445355008,34.2781985,87.866,87.786,34.11385283]
[1770445356296,35.30210672,87.863,87.797,37.08093726]
[1770445357305,35.30210672,87.86,87.797,37.08093726]
[1770445357503,35.30210672,87.86,87.77,8.6497928]
[1770445357504,35.30210672,87.829,87.784,37.08093726]
[1770445358500,35.30210672,87.819,87.77,37.08093726]
[1770445359905,35.30210672,87.819,87.771,10.2608]
[1770445360807,3.46033525,87.8,87.756,37.08093726]
[1770445361505,35.30210672,87.81,87.756,37.08093726]
[1770445361506,38.76244197,87.81,87.756,37.08093726]
[1770445362294,3.46033525,87.8,87.756,37.08093726]
[1770445362497,38.76244197,87.81,87.756,37.08093726]
[1770445363602,35.30210672,87.799,87.756,37.08093726]
[1770445363903,38.76244197,87.79,87.743,37.08093726]
[1770445364506,3.46033525,87.78,87.743,37.08093726]
[1770445365503,35.30210672,87.779,87.73,37.08093726]
[1770445366708,3.46033525,87.77,87.73,37.08093726]
[1770445366910,35.30210672,87.769,87.717,37.08093726]
[1770445367309,3.46033525,87.76,87.717,37.08093726]
[1770445371918,3.46033525,87.78,87.721,37.08093726]
[1770445372214,35.30210672,87.782,87.731,37.08093726]
[1770445372514,35.30210672,87.782,87.653,20.5494]
[1770445372515,35.30210672,87.795,87.742,37.08093726]
[1770445373813,35.30210672,87.795,87.747,37.08093726]
[1770445374808,35.30210672,87.813,87.751,37.08093726]
[1770445375113,35.30210672,87.813,87.708,54.8065]
[1770445375114,35.30210672,87.813,87.761,37.08093726]
[1770445375504,35.30210672,87.813,87.766,37.08093726]
[1770445376410,35.30210672,87.827,87.771,37.08093726]
[1770445377519,35.30210672,87.827,87.781,37.08093726]
[1770445378218,35.30210672,87.842,87.791,37.08093726]
[1770445378619,35.30210672,87.859,87.801,37.08093726]
[1770445379118,3.46033525,87.85,87.802,37.08093726]
[1770445379813,35.30210672,87.859,87.804,37.08093726]
[1770445382119,38.76244197,87.85,87.804,37.08093726]
[1770445383615,35.30210672,87.862,87.804,37.08093726]
[1770445383814,35.30210672,87.862,87.726,34.27]
[1770445383815,35.30210672,87.862,87.811,37.08093726]
[1770445384418,3.46033525,87.84,87.801,10.2573]
[1770445384619,35.30210672,87.849,87.801,10.2573]
[1770445385217,35.30210672,87.829,87.784,37.08093726]
[1770445385815,3.46033525,87.84,87.784,37.08093726]
[1770445386019,40.82926449,87.84,87.784,37.08093726]
[1770445386924,40.82926449,87.84,87.786,36.56393745]
[1770445387523,37.36892924,87.84,87.773,36.56393745]
[1770445389123,37.36892924,87.84,87.775,36.46254762]
[1770445390819,37.36892924,87.84,87.777,36.46254762]
[1770445391829,37.36892924,87.84,87.781,36.46254762]
[1770445393830,37.36892924,87.84,87.796,36.46254762]
[1770445395127,37.36892924,87.84,87.801,36.46254762]
[1770445395333,37.43285914,87.87,87.801,36.46254762]
[1770445395930,37.43285914,87.87,87.803,36.46254762]
[1770445396830,37.43285914,87.87,87.808,36.46254762]
[1770445397025,37.43285914,87.87,87.77,8.64975839]
[1770445397026,37.43285914,87.87,87.771,36.46254762]
[1770445397826,37.43285914,87.87,87.804,36.46254762]
[1770445398831,37.43285914,87.87,87.806,36.46254762]
[1770445400844,37.43285914,87.87,87.807,46.71914762]
[1770445401134,37.43285914,87.87,87.807,10.2566]
[1770445401343,37.43285914,87.87,87.808,36.46254762]
[1770445402136,37.43285914,87.864,87.808,36.46254762]
[1770445404443,37.43285914,87.864,87.809,10.2564]
[1770445406043,37.43285914,87.864,87.809,46.71894762]
[1770445406343,37.43285914,87.864,87.813,10.256]
[1770445407540,37.43285914,87.859,87.813,10.256]
[1770445409538,37.43285914,87.859,87.815,46.71824762]
[1770445409944,37.43285914,87.859,87.816,36.46254762]
[1770445414645,37.43285914,87.849,87.802,36.46254762]
[1770445415447,37.43285914,87.849,87.803,10.2571]
[1770445415751,37.43285914,87.849,87.804,34.89762502]
[1770445416648,37.43285914,87.849,87.806,34.89762502]
[1770445417849,37.43285914,87.849,87.809,45.15402502]
[1770445418246,37.43285914,87.849,87.81,34.89762502]
[1770445418447,37.43285914,87.849,87.812,34.89762502]
[1770445419354,37.43285914,87.849,87.8,3.45749074]
[1770445419355,37.43285914,87.849,87.8,10.2574]
[1770445419542,37.43285914,87.849,87.801,34.89762502]
[1770445422552,34.72608098,87.839,87.792,10.2584]
[1770445422756,34.72608098,87.839,87.791,34.89762502]
[1770445425353,34.72608098,87.829,87.778,34.89762502]
[1770445428164,34.72608098,87.809,87.762,34.89762502]
[1770445430356,3.45749074,87.82,87.767,34.89762502]
[1770445430558,34.72608098,87.824,87.771,34.89762502]
[1770445431768,34.72608098,87.824,87.77,3.45749074]
[1770445431769,34.72608098,87.824,87.776,34.89762502]
[1770445435862,38.18357172,87.81,87.776,34.89762502]
[1770445437564,38.18357172,87.81,87.762,10.2619]
[1770445437959,38.18357172,87.81,87.762,45.15952502]
[1770445438158,38.18357172,87.81,87.763,34.89762502]
[1770445438363,34.72608098,87.789,87.752,34.89762502]
[1770445438563,3.45749074,87.77,87.721,34.89762502]
[1770445438763,38.18357172,87.77,87.721,34.89762502]
[1770445439564,3.45749074,87.76,87.721,34.89762502]
[1770445440173,3.45749074,87.75,87.707,34.89762502]
[1770445440467,34.72608098,87.759,87.707,34.89762502]
[1770445440674,3.45749074,87.73,87.694,34.89762502]
[1770445440877,38.18357172,87.74,87.694,34.89762502]
[1770445442162,38.18357172,87.74,87.631,159.8693]
[1770445442163,38.18357172,87.74,87.671,34.89762502]
[1770445442363,3.45749074,87.73,87.671,34.89762502]
[1770445443071,34.72608098,87.734,87.681,34.89762502]
[1770445443268,14.07151159,87.813,87.582,11.15055661]
[1770445443269,34.72608098,87.748,87.691,34.89762502]
[1770445444971,34.72608098,87.748,87.693,34.89762502]
[1770445445168,3.45749074,87.76,87.701,34.89762502]
[1770445445373,38.18357172,87.76,87.701,34.89762502]
[1770445446076,3.45749074,87.75,87.701,34.89762502]
[1770445446780,39.54076976,87.71,87.651,34.46326516]
[1770445447371,3.45749074,87.7,87.651,44.73806516]
[1770445447571,3.45749074,87.7,87.651,34.46326516]
[1770445447869,3.45749074,87.68,87.636,34.46326516]
[1770445448276,3.45749074,87.69,87.639,34.46326516]
[1770445449372,36.51489401,87.715,87.642,36.55386494]
[1770445449977,36.51489401,87.715,87.644,36.55386494]
[1770445450674,36.51489401,87.715,87.661,36.55386494]
[1770445456683,36.51489401,87.715,87.662,10.2736]
[1770445457182,36.51489401,87.715,87.663,36.55386494]
[1770445457886,36.51489401,87.715,87.669,36.55386494]
[1770445458687,36.51489401,87.715,87.673,10.2723]
[1770445459180,36.51489401,87.715,87.669,36.55386494]
[1770445459383,36.51489401,87.715,87.661,10.2738]
[1770445459685,36.51489401,87.715,87.651,36.55386494]
[1770445459982,36.51489401,87.715,87.657,36.55386494]
[1770445461089,36.51489401,87.715,87.661,36.55386494]
[1770445462186,36.51489401,87.756,87.679,36.55386494]
[1770445463784,36.51489401,87.756,87.681,36.55386494]
[1770445465795,36.51489401,87.756,87.692,10.27]
[1770445465995,36.51489401,87.756,87.692,46.82386494]
[1770445466399,36.51489401,87.756,87.693,36.55386494]
[1770445466898,36.51489401,87.756,87.698,36.55386494]
[1770445467495,36.51489401,87.756,87.69,10.2703]
[1770445468802,36.51489401,87.756,87.69,46.82416494]
[1770445469402,36.51489401,87.753,87.676,36.55386494]
[1770445469998,36.51489401,87.739,87.677,10.2718]
[1770445474898,36.51489401,87.737,87.677,10.2718]
[1770445476098,36.51489401,87.737,87.679,45.29298661]
[1770445476299,36.51489401,87.737,87.68,35.02138661]
[1770445477806,36.51489401,87.737,87.684,10.271]
[1770445478003,36.1937752,87.734,87.667,35.02138661]
[1770445478399,36.1937752,87.729,87.653,35.02138661]
[1770445478599,36.1937752,87.72,87.653,35.02138661]
[1770445479911,36.1937752,87.708,87.653,35.02138661]
[1770445482610,36.1937752,87.704,87.653,35.02138661]
[1770445484617,36.1937752,87.704,87.656,35.02138661]
[1770445484816,36.1937752,87.717,87.656,35.02138661]
[1770445485816,36.1937752,87.717,87.661,35.02138661]
[1770445486722,36.1937752,87.717,87.666,35.02138661]
[1770445487519,36.1937752,87.738,87.668,35.02138661]
[1770445488820,36.1937752,87.738,87.672,35.02138661]
[1770445489213,36.1937752,87.729,87.672,35.02138661]
[1770445490827,36.1937752,87.728,87.672,35.02138661]
[1770445491727,36.1937752,87.725,87.672,35.02138661]
[1770445493127,36.1937752,87.725,87.674,35.02138661]
[1770445494931,36.1937752,87.725,87.676,35.02138661]
[1770445495522,3.4689484,87.72,87.676,35.02138661]
[1770445497832,36.1937752,87.739,87.681,35.02138661]
[1770445498730,36.1937752,87.739,87.686,35.02138661]
[1770445500223,36.1937752,87.739,87.689,10.2704]
[1770445500429,36.1937752,87.739,87.69,35.02138661]
[1770445500833,36.1937752,87.739,87.692,35.02138661]
[1770445501430,36.1937752,87.766,87.696,35.02138661]
[1770445501733,36.1937752,87.759,87.701,35.02138661]
[1770445501934,9.20361194,87.816,87.701,35.02138661]
[1770445501935,39.6627236,87.75,87.701,35.02138661]
[1770445502928,36.1937752,87.75,87.705,35.02138661]
[1770445503328,36.1937752,87.78,87.731,35.02138661]
[1770445503524,36.1937752,87.797,87.741,35.02138661]
[1770445504236,36.1937752,87.797,87.743,35.02138661]
[1770445505233,36.1937752,87.797,87.754,35.02138661]
[1770445505431,36.1937752,87.81,87.754,35.02138661]
[1770445506836,36.1937752,87.81,87.756,34.11993646]
[1770445508240,36.1937752,87.81,87.762,34.11993646]
[1770445509732,35.55127908,87.823,87.762,34.11993646]
[1770445510539,35.55127908,87.823,87.767,10.2613]
[1770445510743,8.65496803,87.87,87.76,8.65496803]
[1770445510930,8.65496803,87.87,87.768,36.86819747]
[1770445511135,35.55127908,87.838,87.768,36.86819747]
[1770445511842,35.55127908,87.838,87.783,36.86819747]
[1770445512738,35.55127908,87.838,87.765,36.86819747]
[1770445512942,35.55127908,87.829,87.765,36.86819747]
[1770445513337,35.55127908,87.829,87.737,36.86819747]
[1770445513538,35.55127908,87.809,87.737,36.86819747]
[1770445514842,35.55127908,87.809,87.752,36.86819747]
[1770445516741,35.55127908,87.809,87.755,36.86819747]
[1770445517840,35.55127908,87.809,87.759,36.86819747]
[1770445523749,35.55127908,87.809,87.762,36.86819747]
[1770445524849,35.55127908,87.809,87.764,36.86819747]
[1770445525355,35.55127908,87.823,87.771,36.86819747]
[1770445526750,35.55127908,87.823,87.775,36.86819747]
[1770445527751,35.55127908,87.823,87.777,36.86819747]
[1770445530055,35.55127908,87.823,87.759,36.86819747]
[1770445532155,35.55127908,87.82,87.759,36.86819747]
[1770445534260,35.55127908,87.82,87.772,36.86819747]
[1770445537957,35.03797715,87.819,87.756,35.63674292]
[1770445544262,35.03797715,87.815,87.756,35.63674292]
[1770445545659,35.03797715,87.809,87.756,35.63674292]
[1770445547465,35.03797715,87.799,87.756,35.63674292]
[1770445550264,35.03797715,87.789,87.747,10.2636]
[1770445551468,35.03797715,87.789,87.74,35.63674292]
[1770445553067,35.03797715,87.789,87.73,3.46333758]
[1770445553068,35.03797715,87.789,87.745,35.63674292]
[1770445553970,35.03797715,87.8,87.751,35.63674292]
[1770445554771,35.03797715,87.8,87.756,35.63674292]
[1770445557763,35.03797715,87.8,87.758,35.63674292]
[1770445557963,35.03797715,87.811,87.761,35.63674292]
[1770445559371,35.03797715,87.799,87.761,35.63674292]
[1770445560272,35.03797715,87.819,87.771,35.63674292]
[1770445560574,35.03797715,87.83,87.781,35.63674292]
[1770445560967,38.50131473,87.83,87.781,35.63674292]
[1770445563270,38.50131473,87.83,87.782,35.63674292]
[1770445563469,35.03797715,87.83,87.782,35.63674292]
[1770445564073,35.03797715,87.83,87.78,3.46333758]
[1770445564074,35.03797715,87.83,87.788,35.63674292]
[1770445565577,35.03797715,87.849,87.788,35.63674292]
[1770445566172,35.03797715,87.849,87.792,34.27426642]
[1770445567483,3.46333758,87.83,87.792,34.27426642]
[1770445568471,35.69647471,87.839,87.792,34.27426642]
[1770445568671,35.69647471,87.839,87.793,35.20350467]
[1770445572283,35.69647471,87.839,87.795,35.20350467]
[1770445572987,38.10216769,87.85,87.795,35.20350467]
[1770445573280,38.10216769,87.85,87.797,10.2578]
[1770445573487,34.63883011,87.85,87.798,35.20350467]
[1770445574689,34.63883011,87.85,87.802,35.20350467]
[1770445574882,38.10216769,87.85,87.802,35.20350467]
[1770445577388,38.10216769,87.85,87.804,10.257]
[1770445577589,38.10216769,87.85,87.805,35.20350467]
[1770445580578,34.63883011,87.839,87.805,35.20350467]
[1770445582288,3.46333758,87.84,87.732,28.11735457]
[1770445582289,3.46333758,87.84,87.808,35.20350467]
[1770445582492,38.10216769,87.85,87.808,35.20350467]
[1770445583982,34.63883011,87.85,87.808,35.20350467]
[1770445586889,38.10216769,87.85,87.798,10.2577]
[1770445587089,38.10216769,87.85,87.799,35.20350467]
[1770445587489,34.63883011,87.85,87.799,35.20350467]
[1770445590293,34.63883011,87.85,87.78,3.46333758]
[1770445590294,38.10216769,87.85,87.801,35.20350467]
[1770445590493,34.63883011,87.85,87.801,35.20350467]
[1770445591095,38.10216769,87.85,87.801,35.20350467]
[1770445591295,38.10216769,87.85,87.78,3.46333758]
[1770445591296,38.10216769,87.85,87.807,35.20350467]
[1770445591496,34.63883011,87.85,87.807,35.20350467]
[1770445594296,38.09721919,87.85,87.807,35.20350467]
[1770445605594,34.63883011,87.85,87.807,35.20350467]
[1770445606499,38.09721919,87.85,87.807,35.20350467]
[1770445612008,34.78312952,87.866,87.811,34.978587]
[1770445612515,34.78312952,87.879,87.821,34.978587]
[1770445612701,34.78312952,87.879,87.834,34.978587]
[1770445616317,34.78312952,87.879,87.836,34.978587]
[1770445618416,34.78312952,87.879,87.843,34.978587]
[1770445620416,34.78312952,87.896,87.845,34.978587]
[1770445620606,34.78312952,87.923,87.845,34.978587]
[1770445620813,34.78312952,87.909,87.851,34.978587]
[1770445621114,3.45838908,87.9,87.864,34.978587]
[1770445622014,38.2415186,87.9,87.864,34.978587]
[1770445622403,3.45838908,87.89,87.864,34.978587]
[1770445622815,38.2415186,87.9,87.864,34.978587]
[1770445624007,34.78312952,87.9,87.864,34.978587]
[1770445624311,34.78312952,87.929,87.864,34.978587]
[1770445624512,3.45838908,87.92,87.864,34.978587]
[1770445625819,34.78312952,87.929,87.88,31.74698693]
[1770445626815,34.78312952,87.929,87.882,31.74698693]
[1770445627318,34.78312952,87.929,87.884,31.74698693]
[1770445629918,34.78312952,87.929,87.89,32.92994377]
[1770445630122,3.45838908,87.95,87.89,36.38833285]
[1770445630511,33.06040555,87.951,87.916,32.92994377]
[1770445630710,3.45838908,87.95,87.916,32.92994377]
[1770445631320,36.51879463,87.96,87.918,32.92994377]
[1770445632523,33.06040555,87.96,87.918,32.92994377]
[1770445632825,33.06040555,87.96,87.921,32.92994377]
[1770445633824,36.51879463,87.96,87.921,32.92994377]
[1770445634920,33.06040555,87.96,87.921,32.92994377]
[1770445636620,3.45838908,87.94,87.91,32.92994377]
[1770445636824,33.06040555,87.949,87.91,32.92994377]
[1770445642122,33.06040555,87.949,87.908,10.2448]
[1770445642327,33.06040555,87.929,87.881,32.92994377]
[1770445644824,36.51879463,87.9,87.856,32.92994377]
[1770445645822,33.06040555,87.909,87.856,32.92994377]
[1770445646021,33.06040555,87.899,87.856,32.92994377]
[1770445646222,33.06040555,87.889,87.856,32.92994377]
[1770445647126,33.06040555,87.889,87.844,32.92994377]
[1770445648430,33.06040555,87.9,87.851,32.92994377]
[1770445649232,33.06040555,87.9,87.858,32.92994377]
[1770445651633,33.06040555,87.912,87.862,32.92994377]
[1770445652826,33.06040555,87.912,87.866,32.92994377]
[1770445653224,33.06040555,87.924,87.871,32.92994377]
[1770445653428,33.06040555,87.939,87.881,32.92994377]
[1770445653631,33.06040555,87.939,87.891,32.92994377]
[1770445654132,33.06040555,87.939,87.894,32.92994377]
[1770445654936,33.06040555,87.959,87.901,32.92994377]
[1770445655446,33.06040555,87.959,87.902,10.2455]
[1770445655628,33.06040555,87.959,87.903,32.92994377]
[1770445656736,33.06040555,87.959,87.909,31.40410026]
[1770445656936,33.06040555,87.959,87.911,31.40410026]
[1770445658337,33.06040555,87.959,87.914,31.40410026]
[1770445658533,32.48084428,87.972,87.914,31.40410026]
[1770445659133,32.48084428,87.959,87.914,31.40410026]
[1770445660842,35.93127725,87.95,87.914,31.40410026]
[1770445661336,32.48084428,87.95,87.914,31.40410026]
[1770445661539,35.93127725,87.95,87.914,31.40410026]
[1770445662342,32.48084428,87.95,87.914,31.40410026]
[1770445664640,32.48084428,87.95,87.904,10.2453]
[1770445664840,32.48084428,87.95,87.904,41.64940026]
[1770445665046,32.48084428,87.95,87.91,10.2446]
[1770445665544,32.48084428,87.95,87.911,31.40410026]
[1770445666945,32.48084428,87.95,87.9,3.45043297]
[1770445666946,32.48084428,87.95,87.914,31.40410026]
[1770445672447,35.93127725,87.95,87.903,31.40410026]
[1770445673647,32.48084428,87.992,87.931,31.40410026]
[1770445673950,32.48084428,87.979,87.931,31.40410026]
[1770445675647,32.48084428,87.979,87.935,31.40410026]
[1770445676544,32.48084428,87.979,87.938,31.40410026]
[1770445676852,32.48084428,88.011,87.951,31.40410026]
[1770445677239,32.48084428,88.009,87.951,31.40410026]
[1770445678148,32.48084428,88.009,87.954,31.40410026]
[1770445678345,32.48084428,88.009,87.961,31.40410026]
[1770445679451,32.48084428,88.009,87.97,10.2376]
[1770445680449,32.48084428,88.009,87.961,31.40410026]
[1770445680653,32.48084428,87.989,87.942,31.40410026]
[1770445681353,32.48084428,87.989,87.944,31.40410026]
[1770445681944,32.48084428,87.969,87.91,3.45043297]
[1770445682253,32.48084428,87.969,87.911,31.40410026]
[1770445682455,32.48084428,87.969,87.932,10.242]
[1770445683853,32.48084428,87.969,87.921,31.40410026]
[1770445684951,32.48084428,87.969,87.923,10.2431]
[1770445685151,32.48084428,87.959,87.901,31.40410026]
[1770445685749,3.45043297,87.95,87.901,31.40410026]
[1770445686151,3.45043297,87.95,87.911,10.2445]
[1770445687053,34.37212388,87.95,87.911,10.2445]
[1770445687452,30.92169091,87.95,87.911,10.2445]
[1770445687855,3.45043297,87.93,87.881,32.5222457]
[1770445688350,34.37212388,87.93,87.881,32.5222457]
[1770445688745,30.92169091,87.93,87.881,32.5222457]
[1770445689155,30.92169091,87.93,87.893,10.2465]
[1770445690645,31.4934106,87.919,87.866,30.83950204]
[1770445691756,31.4934106,87.919,87.869,30.83950204]
[1770445692856,31.4934106,87.938,87.891,30.83950204]
[1770445693053,31.4934106,87.938,87.818,28.11735457]
[1770445693054,31.4934106,87.972,87.911,30.83950204]
[1770445693655,3.45043297,87.97,87.911,30.83950204]
[1770445693859,34.94384357,87.97,87.912,30.83950204]
[1770445695358,31.4934106,87.97,87.912,30.83950204]
[1770445695952,31.4934106,87.97,87.918,30.83950204]
[1770445700768,31.4934106,87.97,87.921,30.83950204]
[1770445703373,31.4934106,87.97,87.925,30.83950204]
[1770445703979,31.4934106,87.999,87.928,30.83950204]
[1770445704781,31.4934106,87.999,87.931,30.83950204]
[1770445705477,31.4934106,87.999,87.89,8.62307836]
[1770445705478,31.4934106,87.999,87.936,30.83950204]
[1770445706378,31.4934106,87.999,87.94,30.83950204]
[1770445707778,31.4934106,87.999,87.943,10.2408]
[1770445707972,31.4934106,87.999,87.943,41.08030204]
[1770445708170,31.4934106,87.999,87.944,30.83950204]
[1770445708477,31.4934106,87.999,87.949,30.83950204]
[1770445709178,31.4934106,87.999,87.938,10.2414]
[1770445709580,31.4934106,87.999,87.938,41.08090204]
[1770445709880,31.4934106,87.999,87.939,30.83950204]
[1770445711585,31.4934106,87.999,87.941,30.83950204]
[1770445712985,31.4934106,87.999,87.943,10.2408]
[1770445713184,31.4934106,87.999,87.943,41.08030204]
[1770445713384,31.4934106,88.011,87.944,30.83950204]
[1770445713581,31.4934106,88.011,87.964,41.07780204]
[1770445714979,31.4934106,88.011,87.965,30.83950204]
[1770445717486,29.7018576,88.009,87.952,29.36262102]
[1770445718283,34.15,88.044,87.952,29.36262102]
[1770445718284,33.148422,88.0,87.952,29.36262102]
[1770445723192,3.4465644,87.96,87.911,29.36262102]
[1770445724688,3.4465644,87.96,87.915,29.36262102]
[1770445725395,29.7018576,87.969,87.915,29.36262102]
[1770445725783,29.7018576,87.969,87.917,29.36262102]
[1770445726683,29.7018576,87.969,87.919,29.36262102]
[1770445727694,29.7018576,87.969,87.92,10.2435]
[1770445727898,29.7018576,87.969,87.92,39.60612102]
[1770445728086,29.7018576,87.969,87.921,29.36262102]
[1770445729696,29.7018576,87.969,87.922,10.2432]
[1770445730601,29.7018576,87.969,87.923,29.36262102]
[1770445732797,29.7018576,87.969,87.924,10.243]
[1770445734594,29.7018576,87.969,87.911,10.2445]
[1770445734803,29.7018576,87.969,87.898,29.17827524]
[1770445735699,8.62432066,87.97,87.898,29.17827524]
[1770445735700,29.7018576,87.967,87.901,10.2457]
[1770445735896,29.7018576,87.967,87.901,39.19107362]
[1770445736499,29.7018576,87.965,87.892,28.86044897]
[1770445737299,29.7018576,87.963,87.898,28.86684992]
[1770445738194,29.7018576,87.963,87.909,10.2448]
[1770445741598,29.7018576,87.963,87.898,28.86684992]
[1770445742507,29.7018576,87.963,87.902,28.51473391]
[1770445743804,29.7018576,87.962,87.902,28.51473391]
[1770445744009,29.7018576,87.962,87.89,28.25538394]
[1770445745103,8.62432066,87.95,87.89,28.25538394]
[1770445745302,29.7018576,87.945,87.878,28.10874801]
[1770445746110,27.76891746,87.929,87.843,28.08449196]
[1770445746710,27.76891746,87.921,87.851,28.01923153]
[1770445747306,27.76891746,87.913,87.854,10.2511]
[1770445747512,27.76891746,87.899,87.854,10.2511]
[1770445747910,27.76891746,87.899,87.855,28.01126638]
[1770445748104,27.76891746,87.899,87.857,38.26206638]
[1770445748310,27.76891746,87.899,87.857,28.01126638]
[1770445749410,28.85834364,87.889,87.844,27.80036103]
[1770445749716,32.3137,87.88,87.844,27.80036103]
[1770445750115,28.85834364,87.88,87.844,27.80036103]
[1770445755716,32.3137,87.88,87.836,27.69279798]
[1770445755917,28.85834364,87.88,87.838,27.69279798]
[1770445756818,28.85834364,87.88,87.841,27.63167085]
[1770445758822,32.3137,87.88,87.841,27.63167085]
[1770445760017,32.3137,87.88,87.792,20.5167]
[1770445760018,3.45535636,87.89,87.844,27.39919223]
[1770445760222,28.85834364,87.894,87.844,27.39919223]
[1770445761021,28.85834364,87.894,87.858,27.34088893]
[1770445761216,3.45535636,87.91,87.858,27.34088893]
[1770445761423,28.85834364,87.909,87.858,27.34088893]
[1770445761624,28.85834364,87.909,87.868,10.2495]
[1770445761821,28.85834364,87.909,87.869,27.14367983]
[1770445762124,28.85834364,87.909,87.806,159.5499]
[1770445762125,28.85834364,87.92,87.871,27.14367983]
[1770445762822,32.3137,87.92,87.871,27.14367983]
[1770445763223,32.3137,87.92,87.874,27.08677057]
[1770445764335,28.85834364,87.909,87.874,27.08677057]
[1770445764528,3.45535636,87.9,87.861,26.90848363]
[1770445764726,3.45535636,87.89,87.854,10.2511]
[1770445764927,3.45535636,87.89,87.846,26.91593752]
[1770445765425,28.85834364,87.889,87.846,26.91593752]
[1770445769728,28.85834364,87.869,87.821,26.78751394]
[1770445770124,32.3137,87.85,87.782,26.78751394]
[1770445770326,28.85834364,87.839,87.802,26.69528339]
[1770445770825,3.45535636,87.85,87.802,26.69528339]
[1770445771027,28.85834364,87.853,87.802,26.69528339]
[1770445771831,28.85834364,87.853,87.804,26.65730765]
[1770445773439,28.85834364,87.853,87.758,159.6379]
[1770445773440,28.85834364,87.881,87.831,26.48422985]
[1770445774233,28.85834364,87.879,87.835,26.05020933]
[1770445777533,28.85834364,87.879,87.82,24.48578221]
[1770445778839,28.85834364,87.879,87.824,25.03584117]
[1770445779947,28.85834364,87.879,87.831,36.84565232]
[1770445781646,28.85834364,87.879,87.832,26.43237069]
[1770445783944,28.85834364,87.879,87.833,35.42242848]
[1770445784649,28.85834364,87.879,87.79,8.64118141]
[1770445784650,28.85834364,87.879,87.838,25.08999354]
[1770445786842,28.85834364,87.879,87.839,10.2529]
[1770445787845,28.52865959,87.891,87.846,26.2573325]
[1770445788848,28.52865959,87.891,87.847,10.252]
[1770445789048,28.52865959,87.891,87.848,26.18704482]
[1770445789949,28.52865959,87.891,87.837,25.73242452]
[1770445792352,28.52865959,87.889,87.826,25.15891334]
[1770445793054,28.52865959,87.889,87.829,10.2541]
[1770445795457,28.52865959,87.889,87.826,25.15891334]
[1770445795458,28.52865959,87.887,87.817,10.2554]
[1770445796852,28.52865959,87.876,87.817,10.2554]
[1770445797562,3.45876116,87.85,87.817,10.2554]
[1770445798262,3.45876116,87.85,87.764,48.64065457]
[1770445798263,28.52865959,87.849,87.808,10.2565]
[1770445799061,28.52865959,87.849,87.78,3.45876116]
[1770445799062,28.52865959,87.849,87.804,35.74863918]
[1770445799256,28.52865959,87.849,87.805,25.42533815]
[1770445799453,3.45876116,87.84,87.805,25.42533815]
[1770445799957,3.45876116,87.83,87.795,10.258]
[1770445800663,3.45876116,87.81,87.781,25.55153943]
[1770445800854,3.45876116,87.81,87.751,25.55501091]
[1770445801155,28.52865959,87.809,87.764,25.55501091]
[1770445801656,34.15,87.86,87.741,25.42683466]
[1770445801657,28.52865959,87.799,87.741,25.42683466]
[1770445801854,3.45876116,87.79,87.741,25.42683466]
[1770445802157,28.52865959,87.805,87.752,25.42683466]
[1770445803554,28.52865959,87.819,87.76,3.45876116]
[1770445803861,28.52865959,87.819,87.763,25.66582449]
[1770445804662,28.52865959,87.819,87.765,25.60645677]
[1770445805551,28.52865959,87.819,87.768,25.54484041]
[1770445806452,28.52865959,87.819,87.77,24.73616758]
[1770445806859,30.36730277,87.79,87.737,24.74674245]
[1770445807160,26.90854161,87.79,87.748,24.74674245]
[1770445807357,30.36730277,87.79,87.72,3.45876116]
[1770445807559,3.45876116,87.78,87.721,24.68801787]
[1770445807861,30.36730277,87.77,87.656,24.91579814]
[1770445808060,26.90854161,87.729,87.661,24.91579814]
[1770445808261,26.90854161,87.729,87.681,24.91579814]
[1770445809160,3.45876116,87.74,87.681,24.91579814]
[1770445809369,26.50864675,87.757,87.701,24.72914603]
[1770445812261,26.50864675,87.757,87.704,25.71019162]
[1770445812973,26.50864675,87.757,87.707,25.65712992]
[1770445814063,10.259,87.788,87.707,25.65712992]
[1770445814361,26.50864675,87.809,87.731,26.14465137]
[1770445814558,26.50864675,87.789,87.717,26.09125212]
[1770445814759,26.50864675,87.788,87.717,26.09125212]
[1770445815765,8.66454863,87.79,87.717,26.09125212]
[1770445815766,26.50864675,87.786,87.717,26.09125212]
[1770445816474,26.50864675,87.786,87.732,10.2654]
[1770445819368,26.50864675,87.786,87.73,25.06118972]
[1770445819369,26.50864675,87.786,87.742,10.2643]
[1770445822174,26.50864675,87.799,87.753,25.21142301]
[1770445824762,26.50864675,87.799,87.753,35.47442301]
[1770445825969,26.50864675,87.799,87.72,8.66454863]
[1770445825970,26.50864675,87.799,87.762,10.2619]
[1770445826370,26.50864675,87.799,87.738,24.43028773]